bitfinex-derivatives/quotes_SOLF0:USTF0_20250409
["timestamp","ask_amount","ask_price","bid_price","bid_amount"]
[1744217653316,2.2675,107.98,107.96,0.069305]
[1744217653516,2.2675,107.98,107.97,4.99245499]
[1744217653908,11.5356,107.98,107.97,4.99245499]
[1744217654311,2.2675,107.98,107.96,0.069305]
[1744217654514,2.2675,107.98,107.95,29.75679516]
[1744217655315,0.06950468,107.99,107.95,29.75679516]
[1744217655616,0.06950468,107.99,107.96,4.77425704]
[1744217655917,9.2697,107.97,107.96,0.06641424]
[1744217656228,9.2686,107.98,107.96,0.06641424]
[1744217656520,0.06950468,107.99,107.96,0.06641424]
[1744217656719,9.269,107.97,107.96,0.06641424]
[1744217657414,9.2686,107.98,107.96,0.06641424]
[1744217658115,0.06950468,107.99,107.96,0.06641424]
[1744217658720,9.2685,107.98,107.96,0.06641424]
[1744217658912,0.06950468,107.99,107.96,0.06641424]
[1744217659320,9.2689,107.98,107.96,0.06641424]
[1744217659809,9.33750468,107.99,107.96,9.33601424]
[1744217660006,0.06950468,107.99,107.96,0.06641424]
[1744217661019,0.06950468,107.99,107.97,9.2687]
[1744217661322,0.06950468,107.99,107.96,0.06641424]
[1744217661618,9.33710468,107.99,107.96,9.33591424]
[1744217662616,0.06950468,107.99,107.96,0.06641424]
[1744217663925,9.269,107.97,107.96,0.06641424]
[1744217664424,9.2684,107.98,107.96,0.06641424]
[1744217664629,0.06950468,107.99,107.96,0.06641424]
[1744217664920,9.269,107.97,107.96,0.06641424]
[1744217665426,52.54,107.98,107.96,0.06641424]
[1744217665926,0.06950468,107.99,107.96,0.06641424]
[1744217666634,0.06950468,107.99,107.97,9.2684]
[1744217668028,0.06950468,107.99,107.96,9.33571424]
[1744217668625,9.33720468,107.99,107.96,9.33571424]
[1744217668925,9.33720468,107.99,107.96,0.06641424]
[1744217669328,0.06950468,107.99,107.96,0.06641424]
[1744217670029,9.269,107.97,107.96,0.06641424]
[1744217674137,9.2687,107.98,107.96,0.06641424]
[1744217674328,6.85530468,107.99,107.96,0.06641424]
[1744217674730,9.269,107.97,107.96,0.06641424]
[1744217677238,0.06950468,107.99,107.96,0.06641424]
[1744217677636,9.33740468,107.99,107.96,9.33581424]
[1744217677827,0.06950468,107.99,107.96,9.33581424]
[1744217678023,0.06950468,107.99,107.96,0.06641424]
[1744217678237,9.2685,107.98,107.96,0.06641424]
[1744217678440,0.06950468,107.99,107.96,0.06641424]
[1744217678846,9.269,107.97,107.96,0.06641424]
[1744217680151,60.109,107.97,107.96,0.06641424]
[1744217681250,9.269,107.97,107.96,0.06641424]
[1744217682049,11.5178,107.97,107.96,0.06641424]
[1744217682550,2.2488,107.97,107.91,100.22758639]
[1744217682751,4.5871,107.96,107.91,100.22758639]
[1744217682951,359.0,108.04,107.92,13.4929865]
[1744217683156,23.90404731,107.97,107.9,100.22758639]
[1744217683451,55.4271,107.96,107.9,100.22758639]
[1744217683644,9.2738,107.92,107.9,100.22758639]
[1744217683952,9.2738,107.92,107.9,100.29537265]
[1744217686055,9.2738,107.92,107.9,0.06778626]
[1744217686958,9.2738,107.92,107.9,9.34278626]
[1744217687156,9.2738,107.92,107.91,9.11600702]
[1744217687454,9.2738,107.92,107.9,0.06778626]
[1744217688257,9.2738,107.92,107.91,9.1300442]
[1744217688757,0.05871476,107.94,107.91,22.60785591]
[1744217688956,0.05871476,107.94,107.92,13.34523697]
[1744217689253,11.4826,107.99,107.96,9.2695]
[1744217690155,2.2148,107.99,107.97,9.13545599]
[1744217690360,0.06851482,107.99,107.98,9.14290996]
[1744217690847,0.06851482,107.99,107.98,18.41100996]
[1744217691052,0.06851482,107.99,107.98,22.63412614]
[1744217691654,0.06851482,107.99,107.98,18.41100996]
[1744217691858,0.06851482,107.99,107.98,22.6364957]
[1744217693951,0.06851482,107.99,107.98,13.3683957]
[1744217694262,0.06851482,107.99,107.98,9.14290996]
[1744217694658,9.33581482,107.99,107.98,9.14290996]
[1744217697464,0.06851482,107.99,107.98,9.1349848]
[1744217697763,9.33581482,107.99,107.98,9.1349848]
[1744217698463,0.06851482,107.99,107.98,9.1349848]
[1744217699060,9.33631482,107.99,107.98,9.13438787]
[1744217699362,9.33631482,107.99,107.96,9.33387774]
[1744217699663,9.33631482,107.99,107.97,22.62140257]
[1744217699857,0.06851482,107.99,107.98,9.13283518]
[1744217700058,0.06851482,107.99,107.98,13.35152554]
[1744217700252,0.06851482,107.99,107.98,22.61962554]
[1744217700759,0.06851482,107.99,107.98,13.35152554]
[1744217700950,9.33581482,107.99,107.96,0.06447774]
[1744217701154,9.33581482,107.99,107.97,13.35450929]
[1744217701356,9.269,107.97,107.96,0.06447774]
[1744217701558,60.109,107.97,107.96,0.06447774]
[1744217701864,9.2661,108.01,107.98,9.2677]
[1744217702164,50.84,108.02,107.95,23.90404731]
[1744217702358,60.1052,108.02,107.99,9.267]
[1744217702548,50.84,108.02,107.99,9.267]
[1744217702754,50.84,108.02,107.97,23.90404731]
[1744217702953,60.17258759,108.02,107.99,9.33214481]
[1744217703258,0.06758759,108.02,108.0,23.93689402]
[1744217703457,0.06758759,108.02,108.01,9.2656]
[1744217704362,0.06758759,108.02,108.0,24.08501446]
[1744217704562,0.06758759,108.02,108.0,14.81911446]
[1744217704763,0.06758759,108.02,108.01,9.2656]
[1744217705360,0.06758759,108.02,108.0,14.81911446]
[1744217705557,0.06758759,108.02,107.99,0.06494481]
[1744217705758,0.06758759,108.02,108.0,9.11368107]
[1744217705964,0.06758759,108.02,108.0,9.2659]
[1744217706172,0.06758759,108.02,108.01,9.11340071]
[1744217706367,0.06758759,108.02,108.0,9.2659]
[1744217707764,50.82,108.08,108.01,9.11040027]
[1744217707966,7.0395,108.09,108.02,37.02627631]
[1744217708164,7.0395,108.09,108.04,9.2625]
[1744217708364,7.0395,108.09,108.02,23.71138718]
[1744217708559,7.0395,108.09,108.03,13.29922881]
[1744217708758,7.0395,108.09,108.04,18.36040719]
[1744217708959,0.06614675,108.07,108.05,0.06178083]
[1744217709153,9.32704675,108.07,108.05,0.06178083]
[1744217709366,0.06614675,108.07,108.05,0.06178083]
[1744217709767,7.0395,108.09,108.05,0.06178083]
[1744217709768,50.82,108.11,108.06,32.79907565]
[1744217709963,50.82,108.11,108.06,23.71138718]
[1744217710167,7.0693,108.14,108.06,23.71138718]
[1744217710360,7.0693,108.14,108.07,9.08545868]
[1744217710560,7.0693,108.14,108.06,23.71138718]
[1744217710863,7.0693,108.14,108.04,388.71138718]
[1744217710864,23.71138718,108.13,108.04,388.71138718]
[1744217711073,0.06092829,108.11,108.09,0.06432973]
[1744217711277,59.0579,108.1,108.09,0.06432973]
[1744217712485,9.2616,108.06,108.04,365.0]
[1744217712768,9.2616,108.06,108.03,9.2635]
[1744217712973,4.5764,108.09,108.02,23.71138718]
[1744217712974,9.2608,108.07,108.02,23.71138718]
[1744217713157,9.2608,108.07,108.03,9.06487017]
[1744217713357,9.2608,108.07,108.04,9.2625]
[1744217713556,4.5764,108.09,108.02,23.71138718]
[1744217713758,0.06819815,108.07,108.04,0.05852458]
[1744217714472,0.06819815,108.07,108.05,9.2621]
[1744217715173,0.06819815,108.07,108.04,23.76991176]
[1744217715671,0.06819815,108.07,108.06,9.2613]
[1744217716676,0.06819815,108.07,108.05,9.2617]
[1744217716872,0.06819815,108.07,108.04,23.76991176]
[1744217717268,0.06819815,108.07,108.04,0.05852458]
[1744217718178,9.2618,108.06,108.04,0.05852458]
[1744217721180,9.32909815,108.07,108.04,9.32132458]
[1744217721688,0.06819815,108.07,108.04,9.32132458]
[1744217721868,9.32909815,108.07,108.04,9.32132458]
[1744217722485,0.06819815,108.07,108.05,9.2621]
[1744217723281,9.32879815,108.07,108.04,9.32102458]
[1744217723481,9.32879815,108.07,108.04,0.05852458]
[1744217724080,9.32879815,108.07,108.04,9.32102458]
[1744217727183,0.06819815,108.07,108.05,9.2618]
[1744217728770,9.32869815,108.07,108.04,24.12743168]
[1744217728973,0.06819815,108.07,108.04,14.86493168]
[1744217729296,9.32909815,108.07,108.04,24.12733168]
[1744217729787,0.06819815,108.07,108.04,14.86493168]
[1744217729980,0.06819815,108.07,108.05,9.2617]
[1744217730181,0.06819815,108.07,108.04,14.86493168]
[1744217730381,0.06819815,108.07,108.05,9.2616]
[1744217732588,0.06819815,108.07,108.04,14.86493168]
[1744217732791,0.06819815,108.07,108.05,9.06255036]
[1744217732979,0.06819815,108.07,108.04,14.86493168]
[1744217733180,0.06819815,108.07,108.06,9.2613]
[1744217733479,0.06819815,108.07,108.06,18.33224204]
[1744217733681,0.06819815,108.07,108.06,9.2613]
[1744217733889,4.5984,108.12,108.06,28.06568171]
[1744217734083,52.6784,108.12,108.07,9.07005899]
[1744217734388,61.9349,108.12,108.09,9.2584]
[1744217735091,62.00144717,108.12,108.09,9.31778937]
[1744217735293,9.257,108.11,108.09,9.31778937]
[1744217735591,9.257,108.11,108.09,0.05938937]
[1744217737085,52.74494717,108.12,108.09,0.05938937]
[1744217737291,0.06654717,108.12,108.09,0.05938937]
[1744217738097,0.06654717,108.12,108.1,9.06336692]
[1744217738295,0.06654717,108.12,108.09,0.05938937]
[1744217738595,0.06654717,108.12,108.11,9.257]
[1744217739896,0.06654717,108.12,108.11,18.31783343]
[1744217740690,46.42,108.15,108.12,9.2555]
[1744217740893,46.42,108.15,108.1,14.8064071]
[1744217741094,11.551,108.16,108.11,13.24477403]
[1744217741281,11.551,108.16,108.12,18.31530677]
[1744217741481,11.551,108.16,108.12,9.2555]
[1744217741680,9.2537,108.15,108.12,9.2555]
[1744217741905,9.31436103,108.15,108.13,0.06439454]
[1744217743199,9.31426103,108.15,108.13,0.06439454]
[1744217743493,0.06066103,108.15,108.13,0.06439454]
[1744217743698,9.2544,108.14,108.13,0.06439454]
[1744217744011,0.06066103,108.15,108.13,0.06439454]
[1744217744308,0.06066103,108.15,108.14,9.2544]
[1744217744497,61.2064071,108.2,108.14,14.8064071]
[1744217744688,46.4,108.2,108.14,14.8064071]
[1744217745098,6.9484,108.21,108.15,9.05344116]
[1744217745296,9.2498,108.2,108.17,9.2513]
[1744217745489,6.9484,108.21,108.17,9.2513]
[1744217745690,0.05919049,108.2,108.17,9.32122529]
[1744217745898,9.30879049,108.2,108.17,9.32122529]
[1744217746203,0.05919049,108.2,108.17,9.32122529]
[1744217746407,9.30849049,108.2,108.17,9.32122529]
[1744217746609,0.05919049,108.2,108.17,9.32122529]
[1744217746901,9.2506,108.19,108.17,0.06992529]
[1744217747205,0.01287607,108.22,108.21,9.2484]
[1744217747391,9.26107607,108.22,108.18,76.8064071]
[1744217747699,0.01287607,108.22,108.19,9.2501]
[1744217747893,0.01287607,108.22,108.17,19.5050071]
[1744217748102,0.01287607,108.22,108.18,9.02846337]
[1744217748295,0.01287607,108.22,108.19,9.2498]
[1744217748802,0.01287607,108.22,108.18,9.311873]
[1744217749399,0.01287607,108.22,108.19,9.2496]
[1744217750003,9.26087607,108.22,108.18,9.311773]
[1744217750302,0.01287607,108.22,108.18,9.311773]
[1744217750497,9.26107607,108.22,108.18,9.311773]
[1744217750702,0.01287607,108.22,108.18,9.311773]
[1744217751202,0.01287607,108.22,108.18,0.061273]
[1744217751804,0.01287607,108.22,108.19,14.8064071]
[1744217753008,0.01287607,108.22,108.21,9.2484]
[1744217754006,0.01287607,108.22,108.21,24.0548071]
[1744217754391,0.01287607,108.22,108.21,86.0548071]
[1744217754599,0.01287607,108.22,108.2,9.30831473]
[1744217754896,0.01287607,108.22,108.2,0.05951473]
[1744217755203,0.01287607,108.22,108.21,9.2484]
[1744217755404,0.01287607,108.22,108.2,0.05951473]
[1744217756103,9.2484,108.21,108.2,0.05951473]
[1744217756911,53.98087607,108.22,108.2,0.05951473]
[1744217757208,9.26087607,108.22,108.2,0.05951473]
[1744217757524,9.2484,108.21,108.2,0.05951473]
[1744217761510,53.9684,108.21,108.2,0.05951473]
[1744217762698,68.7664071,108.21,108.11,14.8064071]
[1744217762898,14.8064071,108.18,108.11,14.8064071]
[1744217763109,9.2506,108.19,108.13,14.8064071]
[1744217763900,0.05951473,108.17,108.15,0.06135825]
[1744217764207,0.05951473,108.17,108.15,9.31455825]
[1744217765412,0.05951473,108.17,108.15,0.06135825]
[1744217766100,9.31171473,108.17,108.15,0.06135825]
[1744217769107,9.2527,108.16,108.15,0.06135825]
[1744217769409,4.5119,108.16,108.09,14.8064071]
[1744217769611,9.2562,108.12,108.09,9.2582]
[1744217769805,44.74,108.12,108.06,44.74]
[1744217770008,44.74,108.12,108.05,536.84968669]
[1744217770208,9.2575,108.11,108.07,9.2599]
[1744217770414,0.05879513,108.1,108.07,0.06115542]
[1744217770812,0.05879513,108.1,108.07,28.88859799]
[1744217771303,0.05879513,108.1,108.08,9.2592]
[1744217771511,0.05879513,108.1,108.07,28.88859799]
[1744217771808,0.05879513,108.1,108.08,9.2592]
[1744217772528,0.05879513,108.1,108.07,28.88859799]
[1744217772814,0.05879513,108.1,108.07,0.06115542]
[1744217773518,9.31699513,108.1,108.07,9.32115542]
[1744217774114,9.31699513,108.1,108.07,0.06115542]
[1744217774308,9.259,108.09,108.07,0.06115542]
[1744217775216,11.70569513,108.1,108.07,0.06115542]
[1744217775418,11.70569513,108.1,108.07,9.32155542]
[1744217775608,11.70569513,108.1,108.07,0.06115542]
[1744217776419,9.2588,108.09,108.07,0.06115542]
[1744217777220,11.70569513,108.1,108.07,0.06115542]
[1744217778022,9.2589,108.09,108.07,0.06115542]
[1744217778822,11.70569513,108.1,108.07,0.06115542]
[1744217779010,2.44739513,108.1,108.07,0.06115542]
[1744217779212,0.05879513,108.1,108.07,14.86756252]
[1744217779923,9.31669513,108.1,108.07,14.86756252]
[1744217780921,0.05879513,108.1,108.07,0.06115542]
[1744217781421,52.45739513,108.1,108.07,0.06115542]
[1744217781922,9.31739513,108.1,108.07,0.06115542]
[1744217782122,52.45739513,108.1,108.07,0.06115542]
[1744217782422,0.05879513,108.1,108.09,14.8064071]
[1744217783725,0.05879513,108.1,108.07,14.86756252]
[1744217783924,43.19879513,108.1,108.07,0.06115542]
[1744217784111,9.2596,108.08,108.07,0.06115542]
[1744217784424,43.19879513,108.1,108.07,0.06115542]
[1744217784627,9.2591,108.09,108.07,0.06115542]
[1744217784920,0.05879513,108.1,108.07,0.06115542]
[1744217785125,0.05879513,108.1,108.08,14.8064071]
[1744217785323,0.05879513,108.1,108.08,24.0655071]
[1744217785624,0.05879513,108.1,108.08,14.8064071]
[1744217785825,52.45709513,108.1,108.07,14.86756252]
[1744217786015,43.19879513,108.1,108.07,0.06115542]
[1744217786425,9.2596,108.08,108.07,0.06115542]
[1744217787535,9.2592,108.09,108.07,0.06115542]
[1744217787824,43.19879513,108.1,108.07,0.06115542]
[1744217788024,9.2596,108.08,108.07,0.06115542]
[1744217789024,43.14,108.09,108.07,0.06115542]
[1744217790127,9.2591,108.09,108.07,0.06115542]
[1744217790826,9.31719513,108.1,108.07,0.06115542]
[1744217791132,0.05879513,108.1,108.07,0.06115542]
[1744217791548,20.694,108.16,108.07,0.06115542]
[1744217791549,2.187,108.16,108.09,14.8064071]
[1744217791826,43.14,108.17,108.13,9.2547]
[1744217792030,52.3922,108.17,108.12,14.8064071]
[1744217792427,52.3922,108.17,108.13,9.2545]
[1744217792627,0.06207785,108.16,108.13,9.31929761]
[1744217792828,9.31497785,108.16,108.13,0.06479761]
[1744217793229,0.06207785,108.16,108.13,0.06479761]
[1744217793531,0.06207785,108.16,108.13,9.31939761]
[1744217793933,9.31487785,108.16,108.13,9.31939761]
[1744217794731,9.31487785,108.16,108.13,71.31939761]
[1744217795336,0.06207785,108.16,108.13,71.31939761]
[1744217795633,0.06207785,108.16,108.13,9.31939761]
[1744217796235,9.31497785,108.16,108.13,9.31939761]
[1744217796633,9.31497785,108.16,108.13,0.06479761]
[1744217797129,2.4081,108.21,108.16,9.252]
[1744217797527,2.4081,108.21,108.15,14.8064071]
[1744217797731,2.4081,108.21,108.16,9.2523]
[1744217797932,2.4081,108.21,108.15,14.8064071]
[1744217798229,2.4081,108.21,108.17,14.8064071]
[1744217798438,2.37907607,108.22,108.17,14.86594872]
[1744217798619,9.2486,108.21,108.17,14.86594872]
[1744217798825,2.37907607,108.22,108.17,14.86594872]
[1744217799026,9.2501,108.2,108.17,0.05954162]
[1744217800937,52.3689,108.21,108.17,24.11734872]
[1744217801441,43.12,108.21,108.17,14.86594872]
[1744217802546,52.3688,108.21,108.17,24.11744872]
[1744217802738,0.01287607,108.22,108.17,14.86594872]
[1744217803140,9.2489,108.21,108.17,24.11694872]
[1744217803340,0.01287607,108.22,108.17,14.86594872]
[1744217803637,0.01287607,108.22,108.18,9.06979658]
[1744217803840,0.01287607,108.22,108.17,14.86594872]
[1744217804044,0.01287607,108.22,108.18,9.06850536]
[1744217804242,9.2489,108.21,108.17,24.11734872]
[1744217804437,9.2489,108.21,108.18,9.06666758]
[1744217804634,0.01287607,108.22,108.17,14.86594872]
[1744217804833,9.26087607,108.22,108.18,9.2509]
[1744217805041,0.01287607,108.22,108.17,14.86594872]
[1744217805933,9.2493,108.21,108.17,24.11744872]
[1744217806446,9.2494,108.2,108.17,24.11744872]
[1744217806644,0.01287607,108.22,108.17,14.86594872]
[1744217807147,9.2488,108.21,108.17,24.11724872]
[1744217808436,9.26087607,108.22,108.18,9.2509]
[1744217808847,0.01287607,108.22,108.17,14.86594872]
[1744217809041,0.01287607,108.22,108.19,9.2496]
[1744217809548,0.01287607,108.22,108.2,9.2489]
[1744217810151,0.01287607,108.22,108.21,9.2484]
[1744217810644,0.01287607,108.22,108.21,24.0548071]
[1744217811650,0.01287607,108.22,108.21,14.8064071]
[1744217812046,0.01287607,108.22,108.2,14.8064071]
[1744217812645,0.01287607,108.22,108.2,24.0552071]
[1744217813740,0.01287607,108.22,108.19,0.07104929]
[1744217814245,9.2491,108.21,108.19,0.07104929]
[1744217818148,9.26097607,108.22,108.19,0.07104929]
[1744217818551,0.01287607,108.22,108.19,0.07104929]
[1744217818852,9.2489,108.21,108.19,0.07104929]
[1744217819054,0.01287607,108.22,108.19,0.07104929]
[1744217819245,9.26087607,108.22,108.19,0.07104929]
[1744217820157,9.26087607,108.22,108.19,9.32114929]
[1744217820351,9.26087607,108.22,108.19,0.07104929]
[1744217820551,14.8064071,108.21,108.12,42.44]
[1744217820856,42.44,108.2,108.13,9.03463002]
[1744217821155,9.2515,108.18,108.12,57.2464071]
[1744217821356,42.44,108.2,108.13,23.84625309]
[1744217821656,59.6307071,108.21,108.14,9.03521911]
[1744217821860,0.06304286,108.18,108.15,0.06123108]
[1744217822049,0.06304286,108.18,108.15,42.50123108]
[1744217822245,0.06304286,108.18,108.16,9.03635776]
[1744217822552,0.06304286,108.18,108.15,57.30763818]
[1744217822955,0.06304286,108.18,108.15,66.56073818]
[1744217823157,9.31414286,108.18,108.15,0.06123108]
[1744217823355,0.06304286,108.18,108.15,0.06123108]
[1744217823557,57.30944996,108.18,108.15,0.06123108]
[1744217824270,42.50304286,108.18,108.15,0.06123108]
[1744217824457,0.06304286,108.18,108.15,0.06123108]
[1744217824955,9.31424286,108.18,108.15,0.06123108]
[1744217825355,9.2519,108.17,108.15,0.06123108]
[1744217825660,42.44,108.17,108.15,0.06123108]
[1744217826759,9.2527,108.16,108.15,0.06123108]
[1744217827054,4.55054286,108.18,108.15,0.06123108]
[1744217827660,2.31174286,108.18,108.15,9.31483108]
[1744217827848,0.06304286,108.18,108.15,0.06123108]
[1744217828049,0.06304286,108.18,108.15,14.86763818]
[1744217828251,0.06304286,108.18,108.16,9.2523]
[1744217828450,0.06304286,108.18,108.15,14.86763818]
[1744217828753,0.01287607,108.22,108.17,14.8064071]
[1744217828953,0.01287607,108.22,108.19,14.8064071]
[1744217829466,0.01287607,108.22,108.2,9.2488]
[1744217829761,0.01287607,108.22,108.19,14.8064071]
[1744217830057,0.01287607,108.22,108.2,0.05999066]
[1744217831164,0.01287607,108.22,108.21,9.05872133]
[1744217831461,0.01287607,108.22,108.21,9.05748269]
[1744217831658,0.01287607,108.22,108.21,71.05748269]
[1744217832465,0.01287607,108.22,108.21,9.05748269]
[1744217834272,0.01287607,108.22,108.21,13.25068641]
[1744217834769,0.01287607,108.22,108.21,37.30549351]
[1744217834963,401.44,108.34,108.21,37.29709351]
[1744217835264,49.2963,108.34,108.25,14.8064071]
[1744217835468,14.8064071,108.33,108.26,75.31844197]
[1744217835669,14.8064071,108.31,108.27,9.05748269]
[1744217835871,49.2963,108.34,108.28,0.06790549]
[1744217836367,14.8064071,108.31,108.28,0.06790549]
[1744217836565,9.2416,108.29,108.28,0.06790549]
[1744217836762,14.8064071,108.29,108.22,366.84808722]
[1744217836966,14.8064071,108.29,108.23,13.26391986]
[1744217837169,14.8064071,108.29,108.24,13.26391986]
[1744217837170,9.2434,108.27,108.24,13.26391986]
[1744217837470,14.8064071,108.3,108.25,13.2619688]
[1744217837671,14.8064071,108.3,108.26,9.07277872]
[1744217837865,14.8064071,108.3,108.25,9.2446]
[1744217838172,0.05916837,108.29,108.27,0.07070282]
[1744217840473,9.30136837,108.29,108.27,0.07070282]
[1744217840773,0.05916837,108.29,108.27,0.07070282]
[1744217841069,9.2425,108.28,108.27,0.07070282]
[1744217841460,57.2264071,108.28,108.22,28.81103878]
[1744217841665,14.8064071,108.26,108.22,28.81103878]
[1744217841862,43.16,108.25,108.22,28.81103878]
[1744217842067,52.4054,108.25,108.23,9.07164476]
[1744217842269,43.16,108.25,108.22,28.81103878]
[1744217842572,9.2459,108.24,108.22,28.87466017]
[1744217842774,43.2249441,108.25,108.22,28.87466017]
[1744217842976,43.2249441,108.25,108.22,0.06362139]
[1744217843176,9.2467,108.23,108.22,0.06362139]
[1744217843777,9.2476,108.22,108.21,99.60031417]
[1744217844275,9.2476,108.22,108.21,88.75171417]
[1744217845667,43.21842891,108.23,108.2,0.06557565]
[1744217847674,52.46552891,108.23,108.2,0.06557565]
[1744217847981,43.21842891,108.23,108.2,0.06557565]
[1744217848182,9.2476,108.22,108.2,0.06557565]
[1744217848379,43.21842891,108.23,108.2,0.06557565]
[1744217848580,43.21842891,108.23,108.21,9.08957939]
[1744217848877,43.21842891,108.23,108.2,0.06557565]
[1744217849075,0.05842891,108.23,108.21,13.28652685]
[1744217849268,0.05842891,108.23,108.22,18.33655602]
[1744217849471,0.05842891,108.23,108.22,9.08895602]
[1744217849971,0.05842891,108.23,108.22,18.33655602]
[1744217850172,0.05842891,108.23,108.22,22.5326578]
[1744217850882,0.05842891,108.23,108.22,13.2850578]
[1744217851084,0.05842891,108.23,108.22,9.08895602]
[1744217851584,0.05842891,108.23,108.2,0.06557565]
[1744217851875,0.05842891,108.23,108.21,9.08319201]
[1744217852079,0.05842891,108.23,108.2,0.06557565]
[1744217852266,9.2484,108.21,108.2,0.06557565]
[1744217852983,9.2481,108.22,108.2,0.06557565]
[1744217853783,0.05842891,108.23,108.2,0.06557565]
[1744217854781,9.2481,108.22,108.2,0.06557565]
[1744217855181,2.43152891,108.23,108.2,0.06557565]
[1744217855377,9.2481,108.22,108.2,0.06557565]
[1744217855577,2.43152891,108.23,108.2,0.06557565]
[1744217856879,4.489,108.22,108.2,0.06557565]
[1744217857081,52.4284,108.21,108.2,0.06557565]
[1744217857280,43.18,108.21,108.16,9.2524]
[1744217857482,43.18,108.21,108.13,4.7304]
[1744217857780,43.18,108.21,108.14,13.29587208]
[1744217857972,43.18,108.21,108.15,13.29587208]
[1744217858177,43.18,108.21,108.13,4.7304]
[1744217858376,43.18,108.21,108.14,13.29387453]
[1744217858676,9.2519,108.17,108.16,0.07030361]
[1744217859585,0.06658475,108.18,108.16,9.32300361]
[1744217860088,0.06658475,108.18,108.16,0.07030361]
[1744217860479,0.06658475,108.18,108.17,9.2519]
[1744217860687,0.06658475,108.18,108.16,0.07030361]
[1744217860895,43.24658475,108.18,108.16,0.07030361]
[1744217861486,52.49808475,108.18,108.16,0.07030361]
[1744217861988,43.24658475,108.18,108.16,9.32280361]
[1744217862286,0.06658475,108.18,108.16,0.07030361]
[1744217862488,0.06658475,108.18,108.16,9.32270361]
[1744217863189,0.06658475,108.18,108.16,0.07030361]
[1744217863788,0.06658475,108.18,108.17,9.2519]
[1744217863982,0.06658475,108.18,108.16,0.07030361]
[1744217864377,0.06658475,108.18,108.16,9.32220361]
[1744217864578,0.06658475,108.18,108.16,0.07030361]
[1744217864993,0.06658475,108.18,108.17,9.2519]
[1744217865590,0.06658475,108.18,108.16,9.32230361]
[1744217865792,0.06658475,108.18,108.17,9.08405216]
[1744217865986,0.06658475,108.18,108.16,9.32230361]
[1744217867191,0.06658475,108.18,108.16,0.07030361]
[1744217867487,0.06658475,108.18,108.17,9.2519]
[1744217867692,0.06658475,108.18,108.17,18.33506288]
[1744217867886,0.06658475,108.18,108.17,9.08316288]
[1744217868186,0.06658475,108.18,108.16,9.32250361]
[1744217868187,0.06658475,108.18,108.16,0.07030361]
[1744217868888,0.06658475,108.18,108.16,9.32250361]
[1744217869700,0.06658475,108.18,108.16,0.07030361]
[1744217869996,0.06658475,108.18,108.17,9.08766974]
[1744217870182,11.6202,108.23,108.17,9.08766974]
[1744217870383,9.2471,108.23,108.18,9.08605846]
[1744217870580,57.95424236,108.25,108.19,13.28081142]
[1744217870888,57.95424236,108.25,108.19,9.2498]
[1744217871288,57.95424236,108.25,108.21,0.06048867]
[1744217871289,9.31022793,108.23,108.21,0.06048867]
[1744217872191,0.06312793,108.23,108.21,0.06048867]
[1744217873091,0.06312793,108.23,108.22,9.2476]
[1744217874092,0.06312793,108.23,108.22,18.32789239]
[1744217874995,0.06312793,108.23,108.22,18.33118746]
[1744217875194,0.06312793,108.23,108.21,9.30848867]
[1744217875397,0.06312793,108.23,108.22,9.08292745]
[1744217875597,0.06312793,108.23,108.22,9.2476]
[1744217876192,0.06312793,108.23,108.22,18.33038969]
[1744217876492,0.06312793,108.23,108.22,9.2476]
[1744217878286,64.11034236,108.29,108.25,9.2444]
[1744217878599,9.2425,108.28,108.25,9.2444]
[1744217879296,24.01674236,108.28,108.24,9.2454]
[1744217879501,24.07517473,108.28,108.25,0.06398404]
[1744217880201,24.07517473,108.28,108.25,9.30858404]
[1744217880403,0.05843237,108.28,108.25,0.06398404]
[1744217880800,0.05843237,108.28,108.26,9.2438]
[1744217881405,0.05843237,108.28,108.25,0.06398404]
[1744217881605,14.83267473,108.28,108.25,0.06398404]
[1744217882503,24.07557473,108.28,108.25,0.06398404]
[1744217882704,14.83267473,108.28,108.25,0.06398404]
[1744217883006,9.2437,108.27,108.25,0.06398404]
[1744217883211,0.05843237,108.28,108.25,0.06398404]
[1744217883704,0.05843237,108.28,108.25,9.30858404]
[1744217883906,0.05843237,108.28,108.25,0.06398404]
[1744217884806,0.05843237,108.28,108.25,9.30838404]
[1744217885319,0.05843237,108.28,108.26,9.2437]
[1744217885814,0.05843237,108.28,108.27,9.2433]
[1744217887922,0.05843237,108.28,108.27,22.53854183]
[1744217888322,0.05843237,108.28,108.27,18.33754823]
[1744217888524,0.05843237,108.28,108.25,0.06398404]
[1744217888821,0.05843237,108.28,108.26,9.09364037]
[1744217889014,0.05843237,108.28,108.25,0.06398404]
[1744217889217,0.05843237,108.28,108.25,9.30858404]
[1744217889419,9.30093237,108.28,108.25,9.30858404]